bitfinex/quotes_ETHUSD_20251130
["timestamp","ask_amount","ask_price","bid_price","bid_amount"]
[1764538374173,0.002,3024.7,3024.6,39.83340393]
[1764538375102,0.002,3024.7,3024.6,15.48458393]
[1764538375408,0.002,3024.7,3024.6,14.7456967]
[1764538376379,0.002,3024.7,3024.6,18.6784757]
[1764538376785,0.002,3024.7,3024.6,16.33316504]
[1764538376991,0.002,3024.7,3024.6,11.91310404]
[1764538376992,0.9531,3024.7,3024.6,11.91310404]
[1764538377189,0.9531,3024.7,3024.6,12.2417447]
[1764538377399,0.9531,3024.7,3024.6,17.91256204]
[1764538377609,0.9531,3024.7,3024.6,17.39506204]
[1764538377910,0.9531,3024.7,3024.6,12.7124337]
[1764538378082,0.9531,3024.7,3024.6,12.1751337]
[1764538378486,0.9531,3024.7,3024.6,15.9237027]
[1764538378692,0.9531,3024.7,3024.6,14.4227887]
[1764538378893,0.9531,3024.7,3024.6,12.5701337]
[1764538379407,0.9531,3024.7,3024.6,6.3785477]
[1764538379716,0.4555,3024.7,3024.6,12.87928292]
[1764538379884,0.4555,3024.7,3024.6,12.8462207]
[1764538380410,0.4555,3024.7,3024.6,6.3785477]
[1764538380612,0.4555,3024.7,3024.6,18.40734192]
[1764538380784,0.4555,3024.7,3024.6,18.3742797]
[1764538381110,0.4555,3024.7,3024.6,17.9842797]
[1764538381315,0.9531,3024.7,3024.6,17.9842797]
[1764538381493,0.9531,3024.7,3024.6,17.9872797]
[1764538382518,0.9531,3024.7,3024.6,17.9792797]
[1764538383088,0.4555,3024.7,3024.6,17.9792797]
[1764538383595,0.4555,3024.7,3024.6,22.1369927]
[1764538384113,0.4555,3024.7,3024.6,18.3508867]
[1764538384298,0.002,3024.7,3024.6,17.1998957]
[1764538384806,0.002,3024.7,3024.6,19.2416957]
[1764538385818,0.002,3024.7,3024.6,20.9221457]
[1764538386388,0.002,3024.7,3024.6,24.37496576]
[1764538386918,0.002,3024.7,3024.6,39.83136776]
[1764538387101,0.002,3024.7,3024.6,37.94536676]
[1764538387825,0.002,3024.7,3024.6,9.83136776]
[1764538388125,0.002,3024.7,3024.6,39.78657876]
[1764538388308,0.002,3024.7,3024.6,42.91075816]
[1764538388493,0.002,3024.7,3024.6,43.23939882]
[1764538388700,1e-08,3024.8,3024.7,31.31878077]
[1764538388904,0.002,3025.2,3025.1,0.73414466]
[1764538389190,0.4976,3026.1,3025.3,30.73414466]
[1764538389520,0.4976,3026.1,3025.3,38.36537889]
[1764538389732,0.4976,3026.4,3026.3,0.72559411]
[1764538389889,1.20826772,3027.0,3026.4,15.654647]
[1764538390091,0.4976,3027.0,3026.4,15.654647]
[1764538390293,0.4976,3026.9,3026.8,4.17841417]
[1764538390511,0.4976,3026.9,3026.8,31.78112704]
[1764538390711,0.9511,3026.9,3026.8,30.81217404]
[1764538390916,0.9511,3026.9,3026.8,33.69940061]
[1764538391302,0.1954,3028.0,3026.9,10.43200211]
[1764538391501,0.1954,3028.0,3027.9,0.72559411]
[1764538391702,0.4535,3027.0,3026.9,1.72515992]
[1764538391903,0.4535,3027.0,3026.9,1.13109811]
[1764538392130,0.9511,3027.0,3026.9,6.25482311]
[1764538392328,0.4976,3027.7,3027.0,1.13109811]
[1764538392514,0.4976,3027.9,3027.4,0.405504]
[1764538392715,0.4976,3027.9,3027.8,0.32864066]
[1764538392935,0.4976,3027.9,3027.8,4.00153477]
[1764538392936,0.9511,3027.9,3027.8,4.00153477]
[1764538393748,0.9511,3027.9,3027.8,1.05423477]
[1764538394233,0.9511,3027.9,3027.8,4.74418477]
[1764538394408,0.9511,3027.9,3027.2,0.209]
[1764538394409,4.40392006,3027.9,3027.2,0.209]
[1764538394595,0.95753201,3027.8,3027.2,0.209]
[1764538394793,0.4535,3027.3,3027.2,0.209]
[1764538394995,0.9511,3027.3,3027.2,0.209]
[1764538396819,0.9511,3027.3,3026.2,3.30441035]
[1764538396820,7.7072077,3027.3,3026.0,3.45282006]
[1764538397009,7.7072077,3027.3,3025.5,0.66356131]
[1764538397010,0.6489,3026.1,3025.9,0.9923736]
[1764538397223,0.6489,3026.1,3026.0,4.724524]
[1764538397421,1.1465,3026.1,3026.0,4.53727811]
[1764538397615,1.1465,3026.1,3026.0,7.58459417]
[1764538397828,1.1465,3026.1,3026.0,7.99009817]
[1764538398808,0.693,3026.6,3026.1,6.85296511]
[1764538399029,0.693,3026.6,3026.5,0.72559411]
[1764538399228,0.693,3026.6,3026.5,0.96763557]
[1764538399229,0.1954,3026.6,3026.5,0.96763557]
[1764538399542,0.6489,3026.6,3026.5,4.00293557]
[1764538399711,1.1465,3026.6,3026.5,3.27734146]
[1764538399909,1.1465,3026.6,3026.5,0.209]
[1764538402530,1.1465,3026.6,3026.5,3.66182006]
[1764538402731,1.1465,3026.6,3026.5,12.03003531]
[1764538402938,1.1465,3026.6,3026.5,12.35867597]
[1764538403138,1.1465,3026.6,3026.5,11.95632553]
[1764538404937,4.75495578,3027.8,3026.6,0.72559411]
[1764538404938,0.1869,3027.0,3026.6,0.72559411]
[1764538405136,0.1869,3027.0,3026.8,0.72559411]
[1764538405342,0.1869,3027.0,3026.9,0.209]
[1764538405742,0.6526,3027.0,3026.9,0.209]
[1764538405943,1.1084,3027.0,3026.9,0.209]
[1764538407539,1.5495784,3027.0,3026.9,0.209]
[1764538408450,1.1084,3027.0,3026.9,0.209]
[1764538409554,0.4657,3027.0,3026.9,3.51271006]
[1764538409772,0.9215,3027.0,3026.9,0.72559411]
[1764538409922,0.9215,3027.0,3026.9,1.92671501]
[1764538410124,0.9215,3027.0,3026.9,1.2011209]
[1764538410324,0.9215,3027.0,3026.9,0.209]
[1764538411023,0.9235,3027.0,3026.9,0.209]
[1764538411655,1.34619732,3027.0,3026.9,0.209]
[1764538412228,7.67992098,3027.0,3026.9,0.209]
[1764538413534,10.9835219,3027.0,3026.2,3.30446857]
[1764538413735,0.6526,3026.3,3026.2,4.03006268]
[1764538413936,0.6526,3026.3,3026.2,4.23906268]
[1764538414124,1.1084,3026.3,3026.2,4.23906268]
[1764538414751,1.1084,3026.3,3026.2,4.27210742]
[1764538415060,3.30561784,3027.0,3026.2,4.23906268]
[1764538415061,0.1869,3026.7,3026.2,4.23906268]
[1764538415370,0.1869,3026.7,3026.4,3.30425588]
[1764538415550,0.4558,3026.6,3026.4,3.30425588]
[1764538415731,0.4657,3026.5,3026.4,3.30425588]
[1764538416149,0.9215,3026.5,3026.4,3.30425588]
[1764538416857,0.002,3027.0,3026.8,0.32864066]
[1764538417039,0.002,3027.0,3026.9,0.209]
[1764538417361,0.9235,3027.0,3026.9,0.209]
[1764538417561,0.9235,3027.0,3026.9,3.51271006]
[1764538418065,0.002,3027.0,3026.9,17.38089289]
[1764538418240,0.002,3027.0,3026.9,21.11717235]
[1764538418445,0.002,3027.0,3026.9,18.92940935]
[1764538418856,0.002,3027.0,3026.9,18.64986235]
[1764538419033,0.002,3027.0,3026.9,21.10566335]
[1764538419842,0.9235,3027.0,3026.9,8.70872829]
[1764538420031,0.9235,3027.0,3026.9,5.96458286]
[1764538420866,0.4677,3027.0,3026.9,5.96458286]
[1764538421760,0.002,3027.0,3026.9,20.10695792]
[1764538421965,0.002,3027.0,3026.9,19.77831726]
[1764538422160,0.002,3027.0,3026.9,19.69138292]
[1764538422360,0.002,3027.0,3026.9,15.10585292]
[1764538423064,0.002,3027.0,3026.9,20.49704192]
[1764538423261,0.002,3027.0,3026.9,23.20751054]
[1764538423968,0.002,3027.0,3026.9,23.15987954]
[1764538425370,0.002,3027.0,3026.9,20.43230654]
[1764538426159,0.002,3027.0,3026.9,18.61652154]
[1764538426563,0.9235,3027.0,3026.9,5.6359422]
[1764538426959,0.4677,3027.0,3026.9,5.6359422]
[1764538427159,0.9235,3027.0,3026.9,5.6359422]
[1764538428766,0.4677,3027.0,3026.9,4.02930417]
[1764538428969,0.9235,3027.0,3026.9,4.23830417]
[1764538430066,0.9235,3027.0,3026.9,4.27134127]
[1764538430272,0.9235,3027.0,3026.9,4.23830417]
[1764538430851,0.9235,3027.0,3026.9,4.27134127]
[1764538431165,0.9235,3027.0,3026.9,4.23830417]
[1764538431969,0.9235,3027.0,3026.9,4.27134127]
[1764538432372,0.4677,3027.0,3026.9,4.27134127]
[1764538432681,0.002,3027.0,3026.9,8.82678632]
[1764538432875,0.4724,3027.0,3026.9,5.37396626]
[1764538433779,0.4724,3027.0,3026.9,5.40700336]
[1764538434083,0.4724,3027.0,3026.9,5.37396626]
[1764538435650,0.002,3027.0,3026.9,8.82678632]
[1764538437485,0.4724,3027.0,3026.9,8.82678632]
[1764538438285,0.9621,3027.0,3026.9,4.23830417]
[1764538438481,0.9621,3027.0,3026.6,3.30403753]
[1764538438687,0.1911,3026.5,3026.3,0.9621]
[1764538438988,0.1911,3026.5,3026.4,4.23884999]
[1764538439372,0.6615,3026.5,3026.4,4.23884999]
[1764538439674,1.1512,3026.5,3026.4,4.23884999]
[1764538440073,0.002,3027.0,3026.5,0.72559411]
[1764538440074,0.4897,3026.8,3026.5,0.72559411]
[1764538440459,0.4897,3026.8,3026.5,0.75863557]
[1764538440460,0.4704,3026.6,3026.5,0.75863557]
[1764538440983,0.9601,3026.6,3026.5,4.06278227]
[1764538441193,0.9601,3026.6,3026.5,4.02974081]
[1764538441788,0.002,3027.0,3026.5,7.66252817]
[1764538441995,0.4897,3026.9,3026.5,7.66252817]
[1764538442374,0.4704,3026.6,3026.5,4.35838147]
[1764538442573,0.4704,3026.6,3026.5,4.39142293]
[1764538444466,0.4704,3026.6,3026.5,8.27973793]
[1764538444763,0.4704,3026.6,3026.5,8.24669647]
[1764538445765,0.4897,3026.8,3026.5,7.66252817]
[1764538446011,0.4917,3027.0,3026.6,3.48586043]
[1764538446170,0.4897,3026.9,3026.8,0.32864066]
[1764538446371,0.4897,3026.9,3026.8,0.53764066]
[1764538446670,0.9601,3026.9,3026.8,0.53764066]
[1764538447996,0.9601,3026.9,3026.8,3.51281921]
[1764538451002,0.002,3027.0,3026.8,3.51281921]
[1764538451202,0.002,3027.0,3026.8,6.81663842]
[1764538451900,0.4704,3026.9,3026.8,3.51281921]
[1764538452323,0.9601,3026.9,3026.8,3.51281921]
[1764538452801,0.9601,3026.9,3026.8,0.209]
[1764538453007,0.9601,3026.9,3026.8,3.51281921]
[1764538455401,0.4704,3026.9,3026.8,3.51281921]
[1764538455709,0.9601,3026.9,3026.8,3.51281921]
[1764538461014,0.9601,3026.9,3026.8,0.209]
[1764538462013,0.9621,3026.9,3026.8,0.209]
[1764538462978,0.9621,3026.9,3026.8,3.51281921]
[1764538464593,0.9621,3026.9,3026.8,0.209]
[1764538465008,0.9621,3026.9,3026.8,3.51281921]
[1764538477726,0.9621,3026.9,3026.8,0.209]
[1764538480127,0.9621,3026.9,3026.8,3.51281921]
[1764538484509,0.9621,3026.9,3026.8,0.209]
[1764538485116,0.9621,3026.9,3026.5,3.30404088]
[1764538485436,0.4848,3026.6,3026.3,0.32864066]
[1764538485641,0.4848,3026.4,3026.1,3.30457333]
[1764538485939,0.4848,3026.2,3026.1,4.43567144]
[1764538486229,0.4848,3026.2,3026.1,4.64467144]
[1764538486544,0.4816,3026.4,3026.1,7.94925489]
[1764538488010,0.002,3026.9,3026.1,7.94925489]
[1764538488206,0.4816,3026.6,3026.3,0.32864066]
[1764538489113,0.4816,3026.6,3026.4,0.03304255]
[1764538489310,0.4816,3026.6,3026.5,0.209]
[1764538489910,0.9664,3026.6,3026.5,0.209]
[1764538492104,5.87087141,3026.6,3026.1,0.209]
[1764538492308,0.4848,3026.2,3026.1,0.209]
[1764538492732,0.963,3026.2,3026.1,0.209]
[1764538494040,4.97826959,3026.2,3026.0,0.209]
[1764538494340,0.4782,3026.1,3026.0,0.209]
[1764538494543,1.67821296,3026.1,3026.0,0.209]
[1764538494746,0.9695,3026.1,3026.0,0.209]
[1764538495305,0.9695,3026.1,3025.9,0.209]
[1764538495539,0.4782,3026.0,3025.9,0.209]
[1764538495844,0.9695,3026.0,3025.9,0.209]
[1764538499432,3.30415912,3026.5,3025.9,0.209]
[1764538499614,0.4782,3026.3,3025.9,3.51380187]
[1764538500646,0.4913,3026.0,3025.9,0.209]
[1764538500841,0.9695,3026.0,3025.9,0.209]
[1764538505433,0.9695,3026.0,3025.6,3.30512215]
[1764538505627,0.4782,3025.9,3025.8,0.209]
[1764538506032,1.1507,3025.9,3025.8,0.209]
[1764538506551,1.35827629,3026.9,3025.8,0.209]
[1764538506755,0.70997595,3026.8,3026.3,3.45027738]
[1764538506920,0.4802,3026.6,3026.4,0.209]
[1764538507345,0.4913,3026.5,3026.4,0.209]
[1764538507818,0.9695,3026.5,3026.4,0.209]
[1764538508020,0.9695,3026.5,3026.4,4.23884999]
[1764538508549,0.002,3026.6,3026.4,4.7352944]
[1764538508750,0.4802,3026.6,3026.4,4.7352944]
[1764538509444,0.4913,3026.5,3026.4,4.7352944]
[1764538510240,0.9695,3026.5,3026.4,0.209]
[1764538511153,0.9695,3026.5,3025.9,0.72559411]
[1764538511354,0.4913,3026.0,3025.9,0.72559411]
[1764538511655,0.4913,3026.0,3025.9,0.93459411]
[1764538512260,0.4913,3026.0,3025.9,4.23939598]
[1764538512468,0.9695,3026.0,3025.9,4.23939598]
[1764538513166,0.4913,3026.0,3025.9,4.23939598]
[1764538514065,0.4782,3026.2,3025.9,7.54419785]
[1764538514360,0.002,3026.0,3025.9,4.23939598]
[1764538516443,0.002,3026.0,3025.9,4.99713204]
[1764538522052,0.002,3026.0,3025.9,8.88343171]
[1764538522256,0.002,3026.0,3025.9,8.8503837]
[1764538536948,0.002,3026.0,3025.9,8.52174304]
[1764538538850,0.002,3026.0,3025.9,8.8503837]
[1764538539251,0.002,3026.0,3025.9,20.0718207]
[1764538539550,0.002,3026.0,3025.9,19.8745717]
[1764538540370,0.002,3026.0,3025.9,6.1937767]
[1764538540684,0.002,3026.0,3025.9,20.18685171]
[1764538540881,0.002,3026.0,3025.9,19.82516304]
[1764538541052,0.002,3026.0,3025.9,6.1937767]
[1764538541253,0.002,3026.0,3025.9,19.66935171]
[1764538541575,0.002,3026.0,3025.9,19.6363037]
[1764538541982,0.002,3026.0,3025.9,19.3886477]
[1764538543268,0.002,3026.0,3025.9,19.06000704]
[1764538543474,0.002,3026.0,3025.9,19.6422967]
[1764538544449,0.002,3026.0,3025.9,13.8052197]
[1764538544652,0.002,3026.0,3025.9,10.9112837]
[1764538545453,0.002,3026.0,3025.9,12.4443617]
[1764538546579,0.002,3026.0,3025.9,13.2624217]
[1764538546985,0.002,3026.0,3025.9,12.2043187]
[1764538547557,0.002,3026.0,3025.9,20.2707407]
[1764538548490,0.002,3026.0,3025.9,20.0121667]
[1764538549186,0.002,3026.0,3025.9,18.48501504]
[1764538549489,0.002,3026.0,3025.9,18.8136557]
[1764538549691,0.002,3026.0,3025.9,20.2034907]
[1764538549985,0.002,3026.0,3025.9,18.78424604]
[1764538550191,0.002,3026.0,3025.9,15.04139504]
[1764538550753,0.002,3026.0,3025.9,17.16346804]
[1764538551693,0.002,3026.0,3025.9,5.86513604]
[1764538551899,0.002,3026.0,3025.9,17.6010197]
[1764538552099,0.002,3026.0,3025.9,17.27237904]
[1764538552684,0.002,3026.0,3025.9,9.71513604]
[1764538552889,0.002,3026.0,3025.9,23.14723804]
[1764538553191,0.002,3026.0,3025.9,22.4639577]
[1764538553687,0.002,3026.0,3025.9,21.2304987]
[1764538553895,0.002,3026.0,3025.9,22.3558467]
[1764538554793,0.002,3026.0,3025.9,10.0437767]
[1764538555193,0.002,3026.0,3025.9,28.3201417]
[1764538555391,0.002,3026.0,3025.9,22.0234687]
[1764538555775,0.002,3026.0,3025.9,24.94759404]
[1764538555973,0.002,3026.0,3025.9,25.2762347]
[1764538556198,0.002,3026.0,3025.9,25.0385347]
[1764538556993,0.002,3026.0,3025.9,24.5917437]
[1764538557798,0.002,3026.0,3025.9,24.0408587]
[1764538558870,0.002,3026.0,3025.9,6.1937767]
[1764538559069,0.002,3026.0,3025.9,25.67307671]
[1764538559269,0.002,3026.0,3025.9,25.6400287]
[1764538559968,0.002,3026.0,3025.9,27.1597267]
[1764538560998,0.002,3026.0,3025.9,6.1937767]
[1764538561299,0.002,3026.0,3025.9,8.57076104]
[1764538561814,0.4903,3026.0,3025.9,6.66449798]
[1764538561971,0.9465,3026.0,3025.9,0.4625]
[1764538562295,0.9465,3026.0,3025.9,1.39709411]
[1764538562599,0.9465,3026.0,3025.9,4.23939598]
[1764538567505,0.9465,3026.0,3025.9,4.27244399]
[1764538569776,0.9465,3026.0,3025.9,4.23939598]
[1764538577584,0.002,3026.0,3025.9,9.56998035]
[1764538577783,0.002,3026.0,3025.9,9.53693234]
[1764538578318,0.002,3026.0,3025.9,9.94243634]
[1764538578516,0.002,3026.0,3025.9,27.22931534]
[1764538578716,0.002,3026.0,3025.9,26.52108634]
[1764538579019,0.002,3026.0,3025.9,26.65340282]
[1764538579415,0.002,3026.0,3025.9,9.67546782]
[1764538580383,0.002,3026.0,3025.9,5.86028782]
[1764538580613,0.002,3026.0,3025.9,15.78651283]
[1764538580913,0.002,3026.0,3025.9,15.75346482]
[1764538581087,0.002,3026.0,3025.9,14.19276482]
[1764538581288,0.002,3026.0,3025.9,13.60476482]
[1764538581609,0.002,3026.0,3025.9,15.18687682]
[1764538582612,0.002,3026.0,3025.9,15.17987682]
[1764538582816,0.002,3026.0,3025.9,8.93448182]
[1764538583016,0.9587,3026.0,3025.9,7.39078516]
[1764538583212,0.9587,3026.0,3025.9,7.65570416]
[1764538583617,0.9587,3026.0,3025.9,4.03039598]
[1764538583822,0.9587,3026.0,3025.9,4.23939598]
[1764538585827,0.9587,3026.0,3025.9,0.209]
[1764538587793,0.9587,3026.0,3025.9,3.51380187]
[1764538608325,0.9587,3026.0,3025.9,0.209]
[1764538609037,0.9587,3026.0,3025.9,3.51380187]
[1764538613150,0.9587,3026.0,3025.6,0.72559411]
[1764538613370,0.6562,3025.5,3025.4,0.72659411]
[1764538613521,0.6562,3025.5,3025.4,0.93559411]
[1764538613719,1.1102,3025.5,3025.4,0.001]
[1764538613948,1.82321165,3025.5,3025.4,0.001]
[1764538622223,1.1102,3025.5,3025.4,0.001]
[1764538622721,1.62286288,3025.5,3025.4,0.001]
[1764538622926,1.1102,3025.5,3025.4,0.001]
[1764538627463,0.454,3025.7,3025.4,0.001]
[1764538627763,0.9235,3025.5,3025.4,0.001]
[1764538629091,0.9235,3025.5,3025.4,0.001]
[1764538632194,0.002,3025.5,3025.4,0.001]
[1764538635984,0.002,3025.5,3025.4,1.08340411]
[1764538637276,0.002,3025.5,3025.4,4.38875216]
[1764538638076,0.002,3025.5,3025.4,4.42180564]
[1764538641367,0.002,3025.5,3025.4,7.87528346]
[1764538641602,0.002,3025.5,3025.4,7.84222998]
[1764538644468,0.002,3025.5,3025.4,4.38875216]
[1764538644693,0.985,3025.5,3025.4,3.30634805]
[1764538645296,0.4992,3025.5,3025.4,3.30634805]
[1764538645496,0.002,3025.5,3025.4,3.30634805]
[1764538645805,0.002,3025.5,3025.4,3.33940153]
[1764538646700,0.985,3025.5,3025.4,0.001]
[1764538647877,0.985,3025.5,3025.4,0.21]
[1764538648909,1.69778783,3025.5,3025.4,0.001]
[1764538649212,2.19807452,3025.5,3025.4,0.21]
[1764538649611,1.69778783,3025.5,3025.4,0.21]
[1764538653911,5.00302663,3025.5,3025.4,0.001]
[1764538654608,1.69778783,3025.5,3025.4,0.001]
[1764538654802,2.02651799,3025.5,3025.4,0.001]
[1764538655887,1.69778783,3025.5,3025.4,0.001]
[1764538656087,2.28709321,3025.5,3025.4,0.001]
[1764538660128,2.28676553,3025.5,3025.4,0.001]
[1764538663322,1.69746015,3025.5,3025.4,0.001]
[1764538668008,12.65199076,3025.5,3025.0,0.001]
[1764538668208,0.4972,3025.1,3025.0,0.001]
[1764538668458,1.53839031,3025.1,3025.0,0.001]
[1764538668657,2.26702513,3025.1,3025.0,0.001]
[1764538668808,3.156983,3025.1,3025.0,0.001]
[1764538669345,2.26702513,3025.1,3024.6,0.20785424]
[1764538669542,0.6859,3024.7,3024.6,0.20785424]
[1764538670090,1.1717,3024.7,3024.6,0.20785424]
[1764538670340,2.33083148,3024.7,3024.6,0.20785424]
[1764538673134,1.88307187,3024.7,3024.6,0.20785424]
[1764538674965,1.1717,3024.7,3024.6,0.20785424]
[1764538679753,0.6859,3024.7,3024.6,0.20785424]
[1764538680367,1.1573,3024.7,3024.6,0.20785424]
[1764538680763,0.7104345,3024.9,3024.6,6.96855437]
[1764538680942,0.7104345,3025.1,3024.8,3.45347782]
[1764538681264,0.7104345,3025.0,3024.8,6.76047605]
[1764538681561,1.1818345,3025.2,3024.8,3.45447782]
[1764538681767,0.7104345,3025.1,3024.8,3.45447782]
[1764538681968,0.7104345,3025.0,3024.8,6.76048119]
[1764538682262,0.7104345,3025.0,3024.8,3.45447782]
[1764538682442,0.7104345,3025.0,3024.8,6.75947177]
[1764538683234,0.4714,3025.1,3024.8,6.75947177]
[1764538683432,0.7106784,3025.0,3024.8,0.209]
[1764538683637,3.77690742,3025.3,3024.8,0.209]
[1764538683961,1.68363797,3025.2,3024.8,0.209]
[1764538684162,0.71067842,3025.1,3024.8,0.209]
[1764538684364,0.71067842,3025.0,3024.8,0.209]
[1764538684665,1.18207842,3025.0,3024.8,0.209]
[1764538684843,0.4714,3025.0,3024.8,0.209]
[1764538691175,0.71092032,3024.9,3024.8,0.209]
[1764538692772,1.16382032,3024.9,3024.8,0.209]
[1764538692949,0.71092032,3024.9,3024.8,0.209]
[1764538694568,0.71092032,3024.9,3024.8,3.5160037]
[1764538694942,0.71092032,3025.1,3024.8,6.8220074]
[1764538695266,0.002,3025.2,3024.8,3.5160037]
[1764538695466,0.71155287,3025.1,3024.8,3.5160037]
[1764538695639,0.4734,3025.2,3024.8,3.5160037]
[1764538695839,0.71159888,3025.1,3024.8,3.5160037]
[1764538696040,0.4734,3025.2,3024.8,3.5160037]
[1764538696261,0.71173007,3025.1,3024.8,3.5160037]
[1764538696558,0.4734,3025.2,3024.8,3.5160037]
[1764538696748,0.71172846,3025.1,3024.8,3.5160037]
[1764538696963,0.4734,3025.2,3024.8,3.5160037]
[1764538697268,0.71169229,3025.1,3024.8,3.5160037]
[1764538697449,0.4734,3025.2,3024.8,6.8220074]
[1764538697651,0.71189157,3025.1,3024.8,6.8220074]
[1764538697864,0.4734,3025.2,3024.8,6.8220074]
[1764538698049,0.71190767,3025.1,3024.8,6.8220074]
[1764538698250,0.4734,3025.2,3024.8,6.8220074]
[1764538698475,0.71187801,3025.1,3024.8,6.8220074]
[1764538698651,0.4734,3025.2,3024.8,6.8220074]
[1764538698949,0.71189211,3025.1,3024.8,6.8220074]
[1764538699151,0.4734,3025.2,3024.8,6.8220074]
[1764538699352,0.71181837,3025.1,3024.8,6.8220074]
[1764538699549,0.4734,3025.2,3024.8,6.8220074]
[1764538699757,0.71181837,3025.1,3024.8,6.8220074]
[1764538699945,0.4734,3025.2,3024.8,6.8220074]
[1764538700138,0.71165211,3025.1,3024.8,6.8220074]
[1764538700439,0.4734,3025.2,3024.8,6.8220074]
[1764538700642,0.71157922,3025.1,3024.8,6.8220074]
[1764538700862,0.4734,3025.2,3024.8,6.8220074]
[1764538701059,0.7115665,3025.1,3024.8,6.8220074]
[1764538701266,0.002,3025.1,3024.8,6.8220074]
[1764538702375,0.002,3025.1,3025.0,3.4556584]
[1764538702577,0.002,3025.1,3025.0,3.4566584]
[1764538703377,0.4598,3025.1,3024.8,1.75346069]
[1764538703564,0.4598,3025.1,3024.9,0.209]
[1764538703565,0.4818,3025.1,3024.9,0.209]
[1764538703772,0.002,3025.1,3024.9,0.209]
[1764538704688,0.002,3025.1,3025.0,3.30578512]
[1764538705100,0.002,3025.1,3025.0,3.30678512]
[1764538705592,0.4598,3025.1,3024.9,3.51484878]
[1764538705958,0.4578,3025.0,3024.9,3.30584878]
[1764538706175,0.9376,3025.0,3024.9,3.51484878]
[1764538707994,0.4578,3025.0,3024.9,3.51484878]
[1764538709900,0.4578,3025.0,3024.9,3.54790772]
[1764538710576,0.4578,3025.0,3024.9,3.51484878]
[1764538711897,0.4578,3025.0,3024.9,0.209]
[1764538711898,0.9376,3025.0,3024.9,0.209]
[1764538712099,1.64933313,3025.0,3024.7,0.209]
[1764538712286,0.86730633,3024.9,3024.7,0.209]
[1764538712597,0.4578,3024.8,3024.7,0.209]
[1764538712902,0.9376,3024.8,3024.7,0.209]
[1764538713899,0.4578,3024.8,3024.7,3.515113]
[1764538718103,0.9376,3024.8,3024.7,0.209]
[1764538718319,0.9376,3024.8,3024.6,0.001]
[1764538718474,1.97838036,3024.7,3024.6,0.001]
[1764538718668,2.52577189,3024.7,3024.6,0.001]
[1764538719272,5.83188489,3024.7,3024.6,0.001]
[1764538723810,2.52577189,3024.7,3024.6,0.001]
[1764538724308,2.19704173,3024.7,3024.6,0.001]
[1764538725807,2.19704173,3024.7,3024.2,3.50479331]
[1764538726104,2.2330286,3024.6,3024.2,3.50479331]
[1764538726402,0.7120502,3024.5,3024.2,3.50479331]
[1764538726609,0.4798,3024.5,3024.2,3.50479331]
[1764538729204,0.4818,3024.8,3024.2,3.50479331]
[1764538729415,1.23047555,3024.7,3024.2,3.50479331]
[1764538729589,0.71089405,3024.6,3024.2,3.50479331]
[1764538729790,0.4798,3024.6,3024.2,3.50479331]
[1764538736230,0.4748,3024.3,3024.2,0.209]
[1764538736381,0.4748,3024.3,3024.0,0.21]
[1764538736587,0.4748,3024.1,3024.0,3.5168783]
[1764538737008,0.9383,3024.1,3024.0,0.21]
[1764538737515,0.4635,3024.3,3024.0,3.5168783]
[1764538737725,0.4635,3024.2,3024.0,3.5168783]
[1764538737888,0.4635,3024.2,3024.1,0.001]
[1764538738399,0.9383,3024.2,3024.1,0.001]
[1764538738726,0.71092485,3024.3,3024.1,0.002]
[1764538738928,0.71096137,3024.4,3024.1,0.002]
[1764538739215,0.4635,3024.5,3024.1,0.001]
[1764538739514,0.71105213,3024.4,3024.1,0.001]
[1764538739717,0.4635,3024.5,3024.1,0.001]
[1764538739914,0.71105204,3024.4,3024.1,0.001]
[1764538740220,0.4635,3024.5,3024.1,0.001]
[1764538740516,0.4748,3024.2,3024.1,0.001]
[1764538740903,0.4635,3024.4,3024.1,0.001]
[1764538741110,0.71133758,3024.3,3024.1,0.001]
[1764538741321,0.4635,3024.4,3024.1,0.001]
[1764538741521,0.71133233,3024.3,3024.1,0.001]
[1764538741725,0.4635,3024.4,3024.1,0.001]
[1764538742021,0.71133234,3024.3,3024.1,0.001]
[1764538742210,0.4635,3024.4,3024.1,0.001]
[1764538742410,0.71139222,3024.3,3024.1,0.001]
[1764538742720,3.30823035,3024.6,3024.1,0.001]
[1764538742921,0.4635,3024.3,3024.1,0.001]
[1764538743124,0.4635,3024.5,3024.1,0.001]
[1764538743292,1.17493604,3024.4,3024.1,0.001]
[1764538743492,0.71143604,3024.3,3024.1,0.001]
[1764538743693,0.4635,3024.3,3024.1,0.001]
[1764538744121,3.30823035,3024.6,3024.1,0.001]
[1764538744325,1.6468049,3024.5,3024.1,0.001]
[1764538744622,0.71153889,3024.4,3024.1,0.001]
[1764538744802,0.71153889,3024.3,3024.1,0.001]
[1764538745003,0.4635,3024.3,3024.1,0.001]
[1764538747123,0.71203971,3024.2,3024.1,0.001]
[1764538750035,1.18683971,3024.2,3024.1,0.001]
[1764538753930,0.71203971,3024.2,3024.1,0.001]
[1764538754297,1.18683971,3024.2,3024.1,0.001]
[1764538754498,1.18683971,3024.2,3024.1,3.4569355]
[1764538755831,0.71203971,3024.2,3024.1,3.4569355]
[1764538762228,0.71203971,3024.2,3024.1,6.76370445]
[1764538762541,0.71203971,3024.2,3024.1,3.4569355]
[1764538765146,0.71203971,3024.2,3024.1,6.76370445]
[1764538765633,0.71203971,3024.2,3024.1,3.4569355]
[1764538766843,1.20773971,3024.2,3024.1,3.4569355]
[1764538769226,1.20879961,3024.2,3024.1,3.4569355]
[1764538771047,1.59858582,3023.9,3023.8,0.001]
[1764538771252,7.11141684,3023.9,3023.8,0.001]
[1764538771550,0.32873016,3023.4,3022.9,0.001]
[1764538771752,0.32873016,3023.0,3022.9,0.001]